bitfinex-derivatives/quotes_BNBF0:USTF0_20241225
["timestamp","ask_amount","ask_price","bid_price","bid_amount"]
[1735116855209,0.28389331,704.49,703.24,1.05501863]
[1735116855609,0.26118815,704.48,703.24,1.05501863]
[1735116855808,1.06054104,705.05,703.24,1.05501863]
[1735116855809,0.2839054,704.46,703.24,1.05501863]
[1735116856115,0.2839054,704.46,703.25,1.137]
[1735116857109,0.2839054,704.46,703.25,2.19201863]
[1735116857815,0.26118048,704.45,703.25,2.19201863]
[1735116858412,0.28391749,704.43,703.25,2.19201863]
[1735116858914,0.28391749,704.43,703.27,1.05501863]
[1735116859615,0.28391749,704.43,703.28,1.05501863]
[1735116860614,0.28391749,704.43,703.31,1.05501863]
[1735116862114,0.26117131,704.42,703.31,1.05501863]
[1735116862417,0.28392555,704.41,703.31,1.05501863]
[1735116863319,0.2611708,704.4,703.31,1.05501863]
[1735116863519,0.28392555,704.41,703.31,1.05501863]
[1735116863918,0.28392555,704.41,703.35,1.05501863]
[1735116864716,0.28392555,704.41,703.32,1.05501863]
[1735116866316,0.28392555,704.41,703.34,1.05501863]
[1735116867323,0.28392555,704.41,703.37,1.05501863]
[1735116868116,0.28392555,704.41,703.25,1.137]
[1735116868117,0.28392555,704.41,703.38,1.05501863]
[1735116869223,0.28392555,704.41,702.89,1.26602236]
[1735116869224,0.28392555,704.41,703.42,1.05501863]
[1735116870124,0.28392555,704.41,703.44,1.05501863]
[1735116870324,0.28392555,704.41,703.45,0.87]
[1735116874527,0.28392555,704.41,703.45,1.92501863]
[1735116875425,0.28392555,704.41,703.47,1.05501863]
[1735116876629,0.28392555,704.41,703.46,1.05501863]
[1735116877729,0.28392555,704.41,703.49,1.05501863]
[1735116880431,0.28392555,704.41,703.5,1.05501863]
[1735116881733,0.28392555,704.41,703.52,1.05501863]
[1735116883632,0.28392555,704.41,703.53,1.05501863]
[1735116884736,0.28392555,704.41,703.52,1.05501863]
[1735116885931,0.28392555,704.41,703.59,1.05501863]
[1735116887639,0.28392555,704.41,703.6,1.074]
[1735116898951,0.26119956,704.4,703.6,1.074]
[1735116899146,0.28393361,704.39,703.6,1.074]
[1735116900543,0.2612026,704.38,703.6,1.074]
[1735116900744,0.54514774,704.37,703.6,1.074]
[1735116900949,0.26120607,704.36,703.6,1.074]
[1735116901149,0.28394974,704.35,703.6,1.074]
[1735116901548,0.26120205,704.34,703.6,1.074]
[1735116902650,0.28394974,704.35,703.6,1.074]
[1735116908948,0.26125745,704.34,703.6,1.074]
[1735116909152,0.2839578,704.33,703.6,1.074]
[1735116909350,0.26125745,704.32,703.6,1.074]
[1735116909649,0.26125745,704.32,703.2,1.05930322]
[1735116909848,0.28396989,704.3,703.11,1.05930322]
[1735116910050,0.26125745,704.29,703.11,1.05930322]
[1735116910555,0.28398199,704.27,703.11,1.05930322]
[1735116910750,0.26125745,704.26,703.12,1.137]
[1735116911452,0.28398199,704.27,703.12,1.137]
[1735116911453,0.2612853,704.25,703.12,1.137]
[1735116911653,0.2612853,704.24,703.12,1.137]
[1735116911849,0.2612853,704.23,703.12,1.137]
[1735116912054,0.2612853,704.22,703.12,1.137]
[1735116912253,0.2612853,704.21,703.12,1.137]
[1735116912455,0.2612853,704.2,703.12,1.137]
[1735116912650,0.2612853,704.19,703.12,1.137]
[1735116912852,0.28398199,704.27,703.12,1.137]
[1735116912853,0.2612853,704.18,703.12,1.137]
[1735116913049,0.28398199,704.27,703.12,1.137]
[1735116913050,0.2612853,704.17,703.12,1.137]
[1735116913350,0.28403039,704.15,703.12,1.137]
[1735116914155,0.26127467,704.14,703.12,1.137]
[1735116914350,0.28403039,704.15,703.12,1.137]
[1735116933861,0.28403039,704.15,702.96,1.05930322]
[1735116934964,0.28403039,704.15,703.0,1.05930322]
[1735116935969,0.28403039,704.15,702.97,1.125]
[1735116935970,0.28403039,704.15,702.99,1.05930322]
[1735116937070,0.28403039,704.15,703.01,1.05930322]
[1735116938369,0.28403039,704.15,703.05,1.05930322]
[1735116940366,0.28403039,704.15,703.06,1.05930322]
[1735116941370,0.28403039,704.15,703.08,1.05930322]
[1735116942668,0.28403039,704.15,703.09,1.05930322]
[1735116943570,0.28403039,704.15,703.1,1.05930322]
[1735116944465,0.28403039,704.15,703.05,1.05930322]
[1735116946570,0.28403039,704.15,703.03,1.05930322]
[1735116947566,0.28403039,704.15,703.02,1.05930322]
[1735116949263,0.28403039,704.15,703.01,1.05930322]
[1735116950371,0.28403039,704.15,703.03,1.05930322]
[1735116951466,0.28403039,704.15,702.97,1.125]
[1735116951467,0.28403039,704.15,703.04,1.05930322]
[1735116952873,0.28403039,704.15,703.09,1.05930322]
[1735116954068,0.28403039,704.15,703.07,1.05930322]
[1735116954974,0.28403039,704.15,703.06,1.05930322]
[1735116955277,0.28403039,704.15,703.06,2.19630322]
[1735116956174,0.28403039,704.15,703.06,1.137]
[1735116963379,0.28403039,704.15,703.07,1.05930322]
[1735116965375,0.28403039,704.15,703.11,1.05930322]
[1735116967980,0.28403039,704.15,703.08,1.05930322]
[1735116969079,0.28403039,704.15,703.06,2.19630322]
[1735116970086,0.28403039,704.15,703.06,1.137]
[1735116973290,0.28403039,704.15,703.06,2.19630322]
[1735116975492,0.28403039,704.15,703.06,1.137]
[1735116988803,0.28403039,704.15,703.13,1.05930322]
[1735116990202,0.28403039,704.15,703.14,0.807]
[1735116990399,0.26128409,704.14,703.14,0.807]
[1735116990705,0.28404249,704.12,703.14,0.807]
[1735116991803,0.26128054,704.11,703.14,0.807]
[1735116991999,0.28405459,704.09,703.14,0.807]
[1735117004312,0.28405459,704.09,703.16,1.05930322]
[1735117005318,0.28405459,704.09,703.18,1.05930322]
[1735117007215,0.28405459,704.09,703.22,1.05930322]
[1735117008117,0.28405459,704.09,703.24,1.05930322]
[1735117009324,0.28405459,704.09,703.14,0.807]
[1735117009325,0.28405459,704.09,703.21,1.05930322]
[1735117010220,0.28405459,704.09,703.2,1.05930322]
[1735117012125,0.28405459,704.09,703.14,1.05930322]
[1735117012526,0.28405459,704.09,703.15,0.75]
[1735117013227,0.28405459,704.09,703.22,1.05930322]
[1735117013921,0.28405459,704.09,703.23,1.05930322]
[1735117015028,0.28405459,704.09,703.24,1.05930322]
[1735117016126,0.28405459,704.09,703.23,1.05930322]
[1735117018528,0.28405459,704.09,703.25,1.05930322]
[1735117018830,1.06416685,705.12,703.25,1.05930322]
[1735117019128,0.2836477,705.1,703.25,1.05930322]
[1735117019828,0.2836477,705.1,703.15,0.75]
[1735117020329,0.2611384,705.09,703.15,0.75]
[1735117020630,0.2836477,705.1,703.2,1.05930322]
[1735117020929,0.26115717,705.09,703.2,1.05930322]
[1735117022333,0.26115717,705.09,703.18,1.05930322]
[1735117022632,0.2836477,705.1,703.18,1.05930322]
[1735117022931,0.26117676,705.09,703.18,1.05930322]
[1735117023331,0.26117676,705.09,703.15,0.75]
[1735117023630,0.26120294,705.08,703.04,1.05930322]
[1735117023831,0.26120294,705.07,703.04,1.05930322]
[1735117024031,0.26120294,705.06,703.04,1.05930322]
[1735117024235,0.26120294,705.05,702.99,1.05930322]
[1735117024534,0.26120294,705.04,702.99,1.05930322]
[1735117024833,0.26120294,705.03,703.0,1.108]
[1735117025032,0.26120294,705.02,703.0,1.108]
[1735117025332,0.26120294,705.01,703.0,1.108]
[1735117025527,0.26119904,705.0,703.0,1.108]
[1735117025727,0.26119904,704.99,703.0,1.108]
[1735117025927,0.2836477,705.1,703.0,1.108]
[1735117025928,0.26119904,704.98,703.0,1.108]
[1735117026124,0.26119904,704.97,703.0,1.108]
[1735117026327,0.26119904,704.96,703.0,1.108]
[1735117026633,0.26119904,704.95,703.0,1.108]
[1735117026832,0.26119904,704.94,703.0,1.108]
[1735117027131,0.26119904,704.93,703.0,1.108]
[1735117027331,0.26119904,704.92,703.0,1.108]
[1735117027527,0.26119904,704.91,703.0,1.108]
[1735117027733,0.26119904,704.9,703.07,1.05930322]
[1735117027934,0.26119904,704.89,703.07,1.05930322]
[1735117028238,0.2836477,705.1,703.07,1.05930322]
[1735117028431,0.2836477,705.1,703.0,1.108]
[1735117028432,1.325369,705.09,703.09,1.05930322]
[1735117028630,0.26120215,705.08,703.09,1.05930322]
[1735117028835,0.26120215,705.07,703.09,1.05930322]
[1735117029131,0.26120215,705.06,703.09,1.05930322]
[1735117029336,0.26120215,705.05,703.09,1.05930322]
[1735117029530,0.26120215,705.04,703.09,1.05930322]
[1735117029738,1.06416685,705.02,703.14,1.05930322]
[1735117030038,0.26120215,705.01,703.14,1.05930322]
[1735117030232,0.26120215,705.0,703.14,1.05930322]
[1735117030435,0.26120215,704.99,703.14,1.05930322]
[1735117030635,0.26120215,704.98,703.14,1.05930322]
[1735117030837,0.26120215,704.97,703.14,1.05930322]
[1735117031035,0.26120215,705.01,703.13,1.05930322]
[1735117031238,0.26120215,705.0,703.13,1.05930322]
[1735117031437,0.26120215,704.99,703.13,1.05930322]
[1735117031638,0.54489814,704.98,703.13,1.05930322]
[1735117031939,0.26119476,704.97,703.13,1.05930322]
[1735117032237,0.28370806,704.95,703.11,1.05930322]
[1735117032439,0.26119476,704.94,703.11,1.05930322]
[1735117032638,0.28372013,704.92,703.11,1.05930322]
[1735117032834,0.26119476,704.91,703.11,1.05930322]
[1735117033038,0.26119476,704.91,703.0,1.108]
[1735117033039,0.28373221,704.89,703.13,1.05930322]
[1735117033338,0.26119476,704.88,703.13,1.05930322]
[1735117033840,0.26119894,704.87,703.13,1.05930322]
[1735117034035,0.26119894,704.87,703.0,1.108]
[1735117034036,0.28374831,704.85,703.15,1.05930322]
[1735117034235,0.26119894,704.84,703.15,1.05930322]
[1735117035037,0.28376039,704.82,703.15,1.05930322]
[1735117035341,0.28376039,704.82,703.16,1.05930322]
[1735117035342,0.26119894,704.81,703.16,1.05930322]
[1735117036333,0.28377247,704.79,703.16,1.05930322]
[1735117036533,0.28377247,704.79,703.19,1.05930322]
[1735117036732,0.52239152,704.78,703.19,1.05930322]
[1735117036937,0.26119576,704.77,703.19,1.05930322]
[1735117037336,0.26119576,704.77,703.0,1.108]
[1735117040541,0.28382482,704.66,703.24,1.0563244]
[1735117040743,0.26119889,704.65,703.24,1.0563244]
[1735117041542,0.26119889,704.65,703.0,1.108]
[1735117041543,0.2838369,704.63,703.26,1.0563244]
[1735117041843,0.26119889,704.62,703.26,1.0563244]
[1735117042239,0.28384899,704.6,703.26,1.0563244]
[1735117042440,0.26119889,704.59,703.26,1.0563244]
[1735117042640,0.28386107,704.57,703.24,1.0563244]
[1735117042846,0.26119889,704.56,703.27,1.137]
[1735117043437,0.28387316,704.54,703.27,1.137]
[1735117043643,0.26119889,704.53,703.27,1.137]
[1735117043843,0.28388525,704.51,703.27,1.137]
[1735117044043,0.26119889,704.5,703.27,1.137]
[1735117044344,0.28389734,704.48,703.27,1.137]
[1735117044545,0.26119889,704.47,703.27,1.137]
[1735117044745,0.28390943,704.45,703.27,1.137]
[1735117044939,0.26124592,704.44,703.27,1.137]
[1735117045341,0.28392152,704.42,703.27,1.137]
[1735117045545,0.26124592,704.41,703.27,1.137]
[1735117045739,0.28393361,704.39,703.27,1.137]
[1735117045942,0.26124592,704.38,703.27,1.137]
[1735117047246,0.2839457,704.36,703.27,1.137]
[1735117047444,0.26124592,704.35,703.27,1.137]
[1735117047846,0.2839578,704.33,703.27,1.137]
[1735117048046,0.26124574,704.32,703.27,1.137]
[1735117048547,0.26124605,704.31,703.27,1.137]
[1735117048746,0.26124605,704.3,703.27,1.137]
[1735117048947,0.26124605,704.29,703.27,1.137]
[1735117049147,0.26124605,704.28,703.27,1.137]
[1735117049447,0.26124605,704.27,703.27,1.137]
[1735117049648,0.26124605,704.26,703.27,1.137]
[1735117049841,0.26124605,704.25,703.27,1.137]
[1735117050045,0.26124605,704.24,703.27,1.137]
[1735117050245,0.2839578,704.33,703.27,1.137]
[1735117050543,0.26124535,704.32,703.27,1.137]
[1735117053449,0.26123877,704.31,703.27,1.137]
[1735117053648,0.26123877,704.3,703.27,1.137]
[1735117053850,0.26123877,704.29,703.27,1.137]
[1735117054150,0.26123877,704.28,703.27,1.137]
[1735117054343,0.28398602,704.26,703.27,1.137]
[1735117054543,0.26123877,704.25,703.27,1.137]
[1735117054745,0.28399812,704.23,703.27,1.137]
[1735117054945,0.26123877,704.22,703.27,1.137]
[1735117055142,0.26123877,704.22,703.29,1.0563244]
[1735117056049,0.28399812,704.23,703.29,1.0563244]
[1735117056252,0.28399812,704.23,703.27,2.1933244]
[1735117056253,0.26124795,704.22,703.27,2.1933244]
[1735117056750,0.28401022,704.2,703.27,2.1933244]
[1735117057144,0.28401022,704.2,703.28,1.0563244]
[1735117057950,0.28401022,704.2,703.27,1.137]
[1735117060353,0.26124334,704.19,703.27,1.137]
[1735117060747,0.28402232,704.17,703.27,1.137]
[1735117062950,0.28402232,704.17,703.19,1.0563244]
[1735117063457,0.28402232,704.17,703.12,1.0563244]
[1735117064054,0.28402232,704.17,703.13,1.092]
[1735117065552,0.28402232,704.17,703.16,1.0563244]
[1735117066959,0.28402232,704.17,703.25,1.0563244]
[1735117068061,0.28402232,704.17,703.31,1.0563244]
[1735117068655,0.28402232,704.17,703.36,1.0563244]
[1735117069762,0.28402232,704.17,703.35,1.0563244]
[1735117070954,0.28402232,704.17,703.42,1.0563244]
[1735117071956,0.28402232,704.17,703.43,1.0563244]
[1735117073063,0.28402232,704.17,703.22,1.0563244]
[1735117073064,0.28402232,704.17,703.44,1.0563244]
[1735117074063,0.28402232,704.17,703.42,1.0563244]
[1735117075065,0.28402232,704.17,703.2,1.0563244]
[1735117075066,0.28402232,704.17,703.43,1.0563244]
[1735117076162,0.28402232,704.17,703.4,1.0563244]
[1735117077068,0.28402232,704.17,703.39,1.0563244]
[1735117077267,0.28402232,704.17,703.4,1.019]
[1735117088270,0.28402232,704.17,703.24,1.0563244]
[1735117089279,0.28402232,704.17,703.21,1.0563244]
[1735117089473,0.28402232,704.17,703.25,1.039]
[1735117090880,0.28402232,704.17,703.26,1.0563244]
[1735117091674,0.28402232,704.17,703.27,1.0563244]
[1735117093881,0.28402232,704.17,703.25,1.039]
[1735117096283,0.28402232,704.17,703.27,1.0563244]
[1735117096982,0.28402232,704.17,703.29,1.0563244]
[1735117098077,0.28402232,704.17,703.31,1.0563244]
[1735117098983,0.28402232,704.17,703.33,1.0563244]
[1735117099979,0.28402232,704.17,703.38,1.0563244]
[1735117101289,0.28402232,704.17,703.25,1.039]
[1735117101290,0.28402232,704.17,703.4,1.0563244]
[1735117102387,0.28402232,704.17,703.41,1.0563244]
[1735117103289,0.28402232,704.17,703.25,1.039]
[1735117103290,0.28402232,704.17,703.44,1.0563244]
[1735117104489,0.28402232,704.17,703.47,1.0563244]
[1735117105489,0.28402232,704.17,703.48,1.0563244]
[1735117106490,0.28402232,704.17,703.49,1.0563244]
[1735117107592,0.28402232,704.17,703.48,1.0563244]
[1735117108285,0.28402232,704.17,703.49,1.0563244]
[1735117111089,0.28402232,704.17,703.51,1.0563244]
[1735117112184,0.28402232,704.17,703.55,1.0563244]
[1735117113595,0.28402232,704.17,703.54,1.0563244]
[1735117114497,0.28402232,704.17,703.57,1.0563244]
[1735117116591,0.28402232,704.17,703.58,1.0563244]
[1735117117997,0.28402232,704.17,703.55,1.0563244]
[1735117120300,0.28402232,704.17,703.57,1.0563244]
[1735117120699,0.28402232,704.17,703.58,0.943]
[1735117123101,0.28402232,704.17,703.58,1.9993244]
[1735117123803,0.28402232,704.17,703.58,0.943]
[1735117136519,0.28402232,704.17,703.61,1.0563244]
[1735117137821,0.28402232,704.17,703.59,1.0563244]
[1735117138823,0.28402232,704.17,703.6,1.0563244]
[1735117139725,0.28402232,704.17,703.58,0.943]
[1735117140828,0.28402232,704.17,703.58,1.9993244]
[1735117142127,0.28402232,704.17,703.58,0.943]
[1735117145827,0.28402232,704.17,703.37,1.0563244]
[1735117146930,0.28402232,704.17,703.38,0.827]
[1735117151732,1.06204563,705.86,703.38,0.827]
[1735117151933,0.28339048,705.74,703.38,0.827]
[1735117152131,1.06204563,705.47,703.64,1.0563244]
[1735117152433,0.26104263,705.46,703.64,1.0563244]
[1735117153434,0.26104263,705.45,703.64,1.0563244]
[1735117153634,0.26104263,705.44,703.64,1.0563244]
[1735117153834,0.26104263,705.43,703.64,1.0563244]
[1735117154035,0.26104263,705.42,703.64,1.0563244]
[1735117154329,0.26104263,705.41,703.64,1.0563244]
[1735117154531,0.26104263,705.4,703.62,1.0563244]
[1735117154735,0.26104263,705.39,703.62,1.0563244]
[1735117155034,0.26104022,705.38,703.62,1.0563244]
[1735117155234,0.26104022,705.37,703.62,1.0563244]
[1735117155430,0.26104022,705.36,703.62,1.0563244]
[1735117155636,0.26104022,705.35,703.6,1.0563244]
[1735117155934,0.26104022,705.34,703.6,1.0563244]
[1735117156135,0.26104022,705.33,703.6,1.0563244]
[1735117156335,0.26104022,705.32,703.6,1.0563244]
[1735117156535,0.54460347,705.31,703.67,1.0563244]
[1735117156836,0.28357129,705.29,703.67,1.0563244]
[1735117157030,0.26104022,705.28,703.67,1.0563244]
[1735117157434,0.26104022,705.28,703.62,1.0563244]
[1735117157827,0.26102771,705.27,703.62,1.0563244]
[1735117158027,0.28357129,705.29,703.62,1.0563244]
[1735117158028,0.26102771,705.26,703.62,1.0563244]
[1735117158233,0.26102771,705.25,703.62,1.0563244]
[1735117158428,0.26102771,705.24,703.62,1.0563244]
[1735117158634,0.26102771,705.23,703.62,1.0563244]
[1735117158835,0.28357129,705.29,703.62,1.0563244]
[1735117158836,0.26102771,705.22,703.62,1.0563244]
[1735117159034,0.28357129,705.29,703.62,1.0563244]
[1735117159035,0.26102771,705.21,703.62,1.0563244]
[1735117159235,0.2836115,705.19,703.62,1.0563244]
[1735117159535,0.26102771,705.18,703.62,1.0563244]
[1735117159742,0.26102771,705.18,703.63,1.0563244]
[1735117160533,0.26102708,705.17,703.63,1.0563244]
[1735117160836,0.26102708,705.16,703.63,1.0563244]
[1735117161036,0.26102708,705.15,703.63,1.0563244]
[1735117161236,0.26102708,705.14,703.63,1.0563244]
[1735117161438,0.26102708,705.13,703.61,1.0563244]
[1735117161637,0.26102708,705.12,703.61,1.0563244]
[1735117161838,0.26102708,705.11,703.61,1.0563244]
[1735117162038,0.26102708,705.1,703.61,1.0563244]
[1735117162241,0.26102708,705.09,703.61,1.0563244]
[1735117162537,0.26102708,705.09,703.38,0.827]
[1735117162538,0.26102708,705.08,703.6,1.0563244]
[1735117162838,0.26102708,705.07,703.6,1.0563244]
[1735117163037,0.26102708,705.06,703.6,1.0563244]
[1735117163240,0.26102708,705.18,703.61,1.0563244]
[1735117163533,0.28362357,705.16,703.61,1.0563244]
[1735117163737,0.26102311,705.15,703.61,1.0563244]
[1735117164137,0.28363564,705.13,703.6,1.0563244]
[1735117164338,0.26102634,705.12,703.6,1.0563244]
[1735117165539,0.2836477,705.1,703.6,1.0563244]
[1735117165838,0.26102634,705.09,703.6,1.0563244]
[1735117166239,0.28365977,705.07,703.6,1.0563244]
[1735117166436,0.26102634,705.06,703.59,1.0563244]
[1735117167335,0.26102634,705.06,703.58,1.0563244]
[1735117167533,0.28367184,705.04,703.58,1.0563244]
[1735117167839,0.26102634,705.03,703.58,1.0563244]
[1735117168236,0.28368391,705.01,703.58,1.0563244]
[1735117168437,0.28368391,705.01,703.38,0.827]
[1735117168438,0.26102634,705.0,703.57,1.0563244]
[1735117168839,0.28369599,704.98,703.57,1.0563244]
[1735117169037,0.26103616,704.97,703.57,1.0563244]
[1735117169238,0.26103616,704.97,703.58,1.0563244]
[1735117170144,0.26103616,704.97,703.6,1.0563244]
[1735117171040,0.26103616,704.97,703.62,1.0563244]
[1735117171443,0.28370806,704.95,703.62,1.0563244]
[1735117171646,0.26103803,704.94,703.62,1.0563244]
[1735117172543,0.26103366,704.93,703.62,1.0563244]
[1735117172842,0.26103366,704.92,703.62,1.0563244]
[1735117173037,0.26103366,704.91,703.62,1.0563244]
[1735117173239,0.26103366,704.9,703.62,1.0563244]
[1735117173442,0.28370806,704.95,703.62,1.0563244]
[1735117173641,0.26103338,704.94,703.65,1.0563244]
[1735117174738,0.26103338,704.94,703.64,1.0563244]
[1735117175144,0.26103338,704.94,703.65,0.998]
[1735117175340,0.28372013,704.92,703.65,0.998]
[1735117175540,0.26103338,704.91,703.65,0.998]
[1735117175738,0.26103338,704.91,703.67,1.0563244]
[1735117176738,0.28373221,704.89,703.67,1.0563244]
[1735117176939,0.28373221,704.89,703.7,1.0563244]
[1735117178045,0.28373221,704.89,703.71,1.0563244]
[1735117178641,0.26103175,704.88,703.71,1.0563244]
[1735117178841,0.28374428,704.86,703.71,1.0563244]
[1735117179040,0.28374428,704.86,703.73,1.0563244]
[1735117180248,0.28374428,704.86,703.75,1.0563244]
[1735117182348,0.28374428,704.86,703.78,1.0563244]
[1735117183247,0.26103433,704.85,703.78,1.0563244]
[1735117183443,0.28375636,704.83,703.83,1.0563244]
[1735117184245,0.28375636,704.83,703.89,1.0563244]
[1735117185248,0.26103542,704.82,703.89,1.0563244]
[1735117185448,0.26103542,704.82,703.93,1.0563244]
[1735117185847,0.28375636,704.83,703.93,1.0563244]
[1735117186955,0.28375636,704.83,703.88,1.0563244]
[1735117189251,0.28375636,704.83,703.89,1.0563244]
[1735117191754,0.28375636,704.83,703.9,1.0563244]
[1735117192447,0.28375636,704.83,703.92,1.0563244]
[1735117193450,0.28375636,704.83,703.93,1.0563244]
[1735117194449,0.28375636,704.83,703.92,1.0563244]
[1735117195853,0.26103916,704.82,703.92,1.0563244]
[1735117196757,0.28376844,704.8,703.92,1.0563244]
[1735117197057,0.28376844,704.8,703.99,1.0563244]
[1735117197756,0.28376844,704.8,703.93,1.0563244]
[1735117198459,0.28376844,704.8,703.93,1.8773244]
[1735117199755,0.28376844,704.8,703.93,0.821]
[1735117207965,0.28376844,704.8,703.98,1.0563244]
[1735117208766,0.28376844,704.8,703.93,0.821]
[1735117219265,0.28376844,704.8,703.93,1.8773244]
[1735117221672,0.28376844,704.8,703.93,0.821]
[1735117227477,0.28376844,704.8,703.96,1.0563244]
[1735117228773,0.28376844,704.8,704.03,1.0563244]
[1735117230176,0.28376844,704.8,703.97,0.915]
[1735117231480,0.28376844,704.8,704.02,1.0563244]
[1735117232282,1.06204563,705.76,704.02,1.0563244]
[1735117232476,0.28339048,705.74,704.02,1.0563244]
[1735117232879,0.28339048,705.74,703.97,0.915]
[1735117232880,0.28339048,705.74,703.99,1.0563244]
[1735117233482,0.28339048,705.74,703.97,0.915]
[1735117234780,0.28339048,705.74,704.19,1.05017475]
[1735117235682,0.28339048,705.74,704.14,1.05017475]
[1735117236783,0.28339048,705.74,703.97,0.915]
[1735117236784,0.28339048,705.74,704.11,1.05017475]
[1735117238287,0.28339048,705.74,704.1,1.05017475]
[1735117239183,0.28339048,705.74,703.97,0.915]
[1735117239184,0.28339048,705.74,704.05,1.05017475]
[1735117240187,0.28339048,705.74,704.01,1.05017475]
[1735117241387,0.28339048,705.74,703.97,0.915]
[1735117245191,0.28339048,705.74,703.97,1.96517475]
[1735117245393,0.26070182,705.73,703.97,1.96517475]
[1735117245791,0.26070037,705.72,703.97,1.96517475]
[1735117245995,0.26070037,705.71,703.97,1.96517475]
[1735117246297,0.26070037,705.7,703.97,1.96517475]
[1735117246494,0.28339048,705.74,703.97,1.96517475]
[1735117246691,0.26069809,705.73,704.11,1.05017475]
[1735117248595,0.28339048,705.74,704.11,1.05017475]
[1735117248797,0.26071593,705.72,704.09,1.05017475]
[1735117248997,0.26071593,705.71,704.09,1.05017475]
[1735117249298,0.28339048,705.74,704.09,1.05017475]
[1735117249694,0.28339048,705.74,703.97,0.915]
[1735117249897,0.26074319,705.73,703.97,0.915]
[1735117250799,0.28339048,705.74,703.97,0.915]
[1735117250997,0.28339048,705.74,703.97,1.96517475]
[1735117252101,0.26075197,705.73,703.99,1.05017475]
[1735117252800,0.26075558,705.72,703.99,1.05017475]
[1735117253101,0.26075558,705.71,704.0,1.05017475]
[1735117253303,0.26075558,705.7,704.0,1.05017475]
[1735117253602,0.26075558,705.69,704.0,1.05017475]
[1735117253902,0.26075558,705.68,704.03,1.05017475]
[1735117254101,0.26075558,705.67,704.03,1.05017475]
[1735117254302,0.26075558,705.66,704.03,1.05017475]
[1735117254500,0.28339048,705.74,704.03,1.05017475]
[1735117254698,0.26075676,705.73,704.03,1.05017475]
[1735117255103,0.26075676,705.73,704.04,0.864]
[1735117255305,0.26075676,705.73,704.04,1.91417475]
[1735117256400,0.26075676,705.73,704.08,1.05017475]
[1735117257001,0.26075676,705.73,704.1,1.05017475]
[1735117257406,0.26075094,705.72,704.1,1.05017475]
[1735117257705,0.26075094,705.71,704.1,1.05017475]
[1735117257908,0.26075094,705.73,704.1,1.05017475]
[1735117258100,0.26075094,705.72,704.11,1.05017475]
[1735117258304,0.26075094,705.71,704.11,1.05017475]
[1735117258503,0.26075094,705.7,704.11,1.05017475]
[1735117258699,0.26075094,705.69,704.11,1.05017475]
[1735117258905,0.26075094,705.68,704.11,1.05017475]
[1735117259105,0.26075094,705.67,704.11,1.05017475]
[1735117259305,0.26075094,705.66,704.17,1.05017475]
[1735117259506,0.26075094,705.65,704.17,1.05017475]
[1735117259705,0.26075094,705.64,704.17,1.05017475]
[1735117259900,0.28339048,705.74,704.17,1.05017475]
[1735117259901,0.26075094,705.63,704.17,1.05017475]
[1735117260207,0.2607587,705.62,704.22,1.05017475]
[1735117260404,0.2607587,705.61,704.22,1.05017475]
[1735117260606,0.2607587,705.6,704.22,1.05017475]
[1735117260800,0.2607587,705.59,704.22,1.05017475]
[1735117261004,0.2607587,705.58,704.22,1.05017475]
[1735117261205,0.2607587,705.57,704.29,1.05017475]
[1735117261406,0.2607587,705.56,704.29,1.05017475]
[1735117261600,0.2607587,705.55,704.29,1.05017475]
[1735117261806,0.2607587,705.54,704.29,1.05017475]
[1735117262006,0.28339048,705.74,704.3,1.05017475]
[1735117262209,0.26073843,705.53,704.3,1.05017475]
[1735117262507,0.28339048,705.74,704.3,1.05017475]
[1735117262807,0.26073439,705.73,704.3,1.05017475]
[1735117263308,0.26073439,705.73,704.05,0.76752469]
[1735117263309,0.26073439,705.73,704.36,1.05017475]
[1735117264708,0.26073439,705.73,704.37,1.05017475]
[1735117266712,0.26073439,705.73,704.42,1.05017475]
[1735117267410,0.26073439,705.73,704.43,0.92]
[1735117268012,0.26073439,705.73,704.48,1.05017475]
[1735117268912,0.26073439,705.73,704.43,0.92]
[1735117268913,0.26073439,705.73,704.5,1.05017475]
[1735117270014,0.26073439,705.73,704.54,1.05017475]
[1735117270513,0.2607534,705.72,704.54,1.05017475]
[1735117270813,0.2607534,705.71,704.54,1.05017475]
[1735117271119,0.2607534,705.7,704.54,1.05017475]
[1735117271307,0.2607534,705.69,704.54,1.05017475]
[1735117271506,0.2607534,705.68,704.54,1.05017475]
[1735117271814,0.2607534,705.67,704.54,1.05017475]
[1735117272114,0.2607534,705.66,704.54,1.05017475]
[1735117272313,0.2607534,705.65,704.56,1.05017475]
[1735117272512,0.2607534,705.64,704.56,1.05017475]
[1735117272815,0.28339048,705.74,704.56,1.05017475]
[1735117272816,0.2607534,705.63,704.56,1.05017475]
[1735117273015,0.28339048,705.74,704.56,1.05017475]
[1735117273209,0.26075227,705.73,704.58,1.05017475]